[Event "Swedish U16 Team Championship 2019 - Final"]
[Site "Molnlycke Kulturhus, Biblioteksgatan 2, Molnlycke, Sweden"]
[Date "2019.08.16"]
[Round "2.16"]
[White "Lindholm, Marcus"]
[Black "Johansson, Sigge"]
[Result "1-0"]
[TimeControl "90 minutes + 30 seconds per move from move one."]
[WhiteElo "1412"]
[BlackElo "1123"]

1. e4 {[%clk 01:30:55]} {[%emt 00:00:04]} e5 {[%clk 01:30:55]} {[%emt
00:00:08]} 2. Nf3 {[%clk 01:31:17]} {[%emt 00:00:06]} Nc6 {[%clk 01:31:13]}
{[%emt 00:00:12]} 3. Bc4 {[%clk 01:31:13]} {[%emt 00:00:33]} d6 {[%clk
01:31:25]} {[%emt 00:00:18]} 4. h3 {[%clk 01:30:50]} {[%emt 00:00:53]} Nf6
{[%clk 01:31:23]} {[%emt 00:00:32]} 5. Nc3 {[%clk 01:30:48]} {[%emt 00:00:32]}
Be7 {[%clk 01:31:10]} {[%emt 00:00:43]} 6. O-O {[%clk 01:23:35]} {[%emt
00:07:43]} O-O {[%clk 01:31:21]} {[%emt 00:00:18]} 7. d4 {[%clk 01:22:34]}
{[%emt 00:01:32]} exd4 {[%clk 01:26:08]} {[%emt 00:05:43]} 8. Nxd4 {[%clk
01:21:49]} {[%emt 00:01:15]} Ne5 {[%clk 01:26:14]} {[%emt 00:00:23]} 9. Bb3
{[%clk 01:20:29]} {[%emt 00:01:50]} b6 {[%clk 01:25:04]} {[%emt 00:01:41]} 10.
f4 {[%clk 01:13:51]} {[%emt 00:07:08]} Ng6 {[%clk 01:24:19]} {[%emt 00:01:13]}
11. Qe2 {[%clk 01:09:34]} {[%emt 00:04:48]} Bb7 {[%clk 01:22:42]} {[%emt
00:02:08]} 12. Rd1 {[%clk 01:01:41]} {[%emt 00:08:23]} Re8 {[%clk 01:20:35]}
{[%emt 00:03:06]} 13. Kh1 {[%clk 00:52:19]} {[%emt 00:09:23]} Qd7 {[%clk
01:18:07]} {[%emt 00:02:58]} 14. Ba4 {[%clk 00:48:19]} {[%emt 00:04:30]} c6
{[%clk 01:16:11]} {[%emt 00:02:26]} 15. e5 {[%clk 00:47:55]} {[%emt 00:00:55]}
Bd8 {[%clk 01:12:00]} {[%emt 00:04:41]} 16. Nf3 {[%clk 00:36:06]} {[%emt
00:12:19]} Qc7 {[%clk 01:10:38]} {[%emt 00:01:51]} 17. exd6 {[%clk 00:35:07]}
{[%emt 00:01:31]} Qd7 {[%clk 01:05:39]} {[%emt 00:05:28]} 18. Ne5 {[%clk
00:30:50]} {[%emt 00:04:47]} Qe6 {[%clk 01:03:13]} {[%emt 00:02:53]} 19. Nxg6
{[%clk 00:25:30]} {[%emt 00:05:53]} Qxe2 {[%clk 00:59:04]} {[%emt 00:04:38]} 20.
Nxe2 {[%clk 00:25:06]} {[%emt 00:00:55]} Rxe2 {[%clk 00:59:24]} {[%emt
00:00:10]} 21. Ne5 {[%clk 00:25:08]} {[%emt 00:00:28]} Ne4 {[%clk 00:58:45]}
{[%emt 00:01:09]} 22. Bb3 {[%clk 00:23:02]} {[%emt 00:02:35]} Nf2+ {[%clk
00:57:35]} {[%emt 00:01:39]} 23. Kh2 {[%clk 00:20:46]} {[%emt 00:02:48]} Nxd1
{[%clk 00:57:54]} {[%emt 00:00:10]} 24. c3 {[%clk 00:17:52]} {[%emt 00:03:24]}
Ne3 {[%clk 00:55:38]} {[%emt 00:02:44]} 25. Bxe3 {[%clk 00:13:41]} {[%emt
00:04:44]} Rxe3 {[%clk 00:55:46]} {[%emt 00:00:21]} 26. Kg1 {[%clk 00:12:30]}
{[%emt 00:01:38]} Bf6 {[%clk 00:53:03]} {[%emt 00:03:15]} 27. Kf2 {[%clk
00:10:42]} {[%emt 00:02:20]} Bxe5 {[%clk 00:51:26]} {[%emt 00:02:07]} 28. Kxe3
{[%clk 00:09:27]} {[%emt 00:01:45]} Bxd6 {[%clk 00:51:39]} {[%emt 00:00:17]} 29.
Rd1 {[%clk 00:09:07]} {[%emt 00:00:49]} Re8+ {[%clk 00:51:49]} {[%emt
00:00:21]} 30. Kf3 {[%clk 00:08:35]} {[%emt 00:01:03]} c5+ {[%clk 00:50:32]}
{[%emt 00:01:47]} 31. Kf2 {[%clk 00:08:16]} {[%emt 00:00:50]} Bxf4 {[%clk
00:49:14]} {[%emt 00:01:46]} 32. Rd7 {[%clk 00:07:59]} {[%emt 00:00:47]} Rb8
{[%clk 00:42:50]} {[%emt 00:06:55]} 33. Rxf7 {[%clk 00:07:37]} {[%emt
00:00:52]} Bd6 {[%clk 00:32:32]} {[%emt 00:10:47]} 34. Rxb7+ {[%clk 00:06:27]}
{[%emt 00:01:41]} Kh8 {[%clk 00:32:33]} {[%emt 00:00:30]} 35. Rxa7 {[%clk
00:06:04]} {[%emt 00:00:53]} h6 {[%clk 00:31:59]} {[%emt 00:01:04]} 36. Rd7
{[%clk 00:05:46]} {[%emt 00:00:47]} Rf8+ {[%clk 00:30:56]} {[%emt 00:01:34]} 37.
Rf7 {[%clk 00:05:51]} {[%emt 00:00:24]} Rxf7+ {[%clk 00:30:50]} {[%emt
00:00:37]} 38. Bxf7 {[%clk 00:06:07]} {[%emt 00:00:13]} Kh7 {[%clk 00:30:47]}
{[%emt 00:00:33]} 39. Ke3 {[%clk 00:05:56]} {[%emt 00:00:36]} g6 {[%clk
00:30:46]} {[%emt 00:00:36]} 40. Ke4 {[%clk 00:05:48]} {[%emt 00:00:31]} g5
{[%clk 00:29:50]} {[%emt 00:01:33]} 41. Kd5 {[%clk 00:05:50]} {[%emt 00:00:28]}
Bf4 {[%clk 00:30:09]} {[%emt 00:00:11]} 42. Kc6 {[%clk 00:05:59]} {[%emt
00:00:21]} Bc1 {[%clk 00:30:29]} {[%emt 00:00:10]} 43. b3 {[%clk 00:06:03]}
{[%emt 00:00:26]} Bd2 {[%clk 00:30:15]} {[%emt 00:00:44]} 44. Kxb6 {[%clk
00:06:15]} {[%emt 00:00:18]} Bxc3 {[%clk 00:30:34]} {[%emt 00:00:11]} 45. Kxc5
{[%clk 00:06:38]} {[%emt 00:00:07]} Kg7 {[%clk 00:30:39]} {[%emt 00:00:25]} 46.
Bd5 {[%clk 00:06:46]} {[%emt 00:00:22]} Kf8 {[%clk 00:30:50]} {[%emt 00:00:20]}
47. a4 {[%clk 00:06:42]} {[%emt 00:00:33]} Ke8 {[%clk 00:31:01]} {[%emt
00:00:20]} 48. b4 {[%clk 00:06:53]} {[%emt 00:00:18]} Kd8 {[%clk 00:31:03]}
{[%emt 00:00:27]} 49. a5 {[%clk 00:06:57]} {[%emt 00:00:26]} Kc8 {[%clk
00:31:06]} {[%emt 00:00:28]} 50. a6 {[%clk 00:07:00]} {[%emt 00:00:27]} Kb8
{[%clk 00:31:20]} {[%emt 00:00:16]} 51. b5 {[%clk 00:07:00]} {[%emt 00:00:30]}
Be1 {[%clk 00:29:26]} {[%emt 00:02:24]} 52. b6 {[%clk 00:06:47]} {[%emt
00:00:44]} Bf2+ {[%clk 00:28:49]} {[%emt 00:01:07]} 53. Kc6 {[%clk 00:07:06]}
{[%emt 00:00:11]} Ka8 {[%clk 00:27:12]} {[%emt 00:02:06]} 54. Kc7# {[%clk
00:07:12]} {[%emt 00:00:24]} 1-0

[Event "Swedish U16 Team Championship 2019 - Final"]
[Site "Molnlycke Kulturhus, Biblioteksgatan 2, Molnlycke, Sweden"]
[Date "2019.08.16"]
[Round "2.18"]
[White "Hjernestam, John"]
[Black "Lyngsjo, Luke"]
[Result "1-0"]
[TimeControl "90 minutes + 30 seconds per move from move one."]
[WhiteElo "1376"]
[BlackElo "1107"]

1. d4 {[%clk 01:30:56]} {[%emt 00:00:03]} Nf6 {[%emt 00:00:26]} 2. Bf4 {[%emt
00:01:34]} d6 {[%emt 00:00:10]} 3. e3 {[%emt 00:01:04]} g6 {[%emt 00:00:16]} 4.
c3 {[%emt 00:00:50]} Bg7 {[%emt 00:01:35]} 5. Bd3 {[%emt 00:02:47]} O-O {[%emt
00:00:58]} 6. Nd2 {[%emt 00:01:35]} Nbd7 {[%emt 00:04:37]} 7. Ne4 {[%emt
00:01:50]} Nxe4 {[%emt 00:00:25]} 8. Bxe4 {[%emt 00:01:01]} e5 {[%emt
00:00:10]} 9. Bg3 {[%emt 00:01:12]} f5 {[%emt 00:02:30]} 10. Bd5+ {[%emt
00:02:36]} Kh8 {[%emt 00:03:39]} 11. Qd2 {[%emt 00:03:03]} Nf6 {[%emt
00:04:23]} 12. Bh4 {[%emt 00:01:38]} c6 {[%emt 00:03:49]} 13. Bb3 {[%emt
00:00:37]} Qc7 {[%emt 00:01:37]} 14. Bxf6 {[%emt 00:00:27]} Rxf6 {[%emt
00:02:02]} 15. h4 {[%emt 00:01:23]} h5 {[%emt 00:02:55]} 16. Nf3 {[%emt
00:01:00]} Bh6 {[%emt 00:00:27]} 17. Ng5 {[%emt 00:00:12]} Bxg5 {[%emt
00:00:37]} 18. hxg5 {[%emt 00:00:17]} Rf8 {[%clk 01:11:21]} {[%emt 00:00:12]}
19. O-O-O {[%emt 00:04:14]} d5 {[%emt 00:00:54]} 20. dxe5 {[%emt 00:02:56]}
Qxe5 {[%clk 01:06:59]} {[%emt 00:00:05]} 21. Qd4 {[%emt 00:01:22]} Qxd4 {[%emt
00:00:16]} 22. Rxd4 {[%emt 00:03:52]} b6 {[%emt 00:00:10]} 23. c4 {[%emt
00:01:10]} dxc4 {[%clk 01:02:38]} {[%emt 00:00:12]} 24. Bxc4 {[%emt 00:01:24]}
c5 {[%emt 00:00:12]} 25. Rd6 {[%emt 00:02:17]} Kg7 {[%emt 00:00:15]} 26. Rhd1
{[%emt 00:02:30]} f4 {[%emt 00:00:43]} 27. e4 {[%clk 01:03:42]} {[%emt
00:08:10]} Re8 {[%emt 00:06:19]} 28. Rf6 {[%clk 01:00:05]} {[%emt 00:00:02]}
Rxe4 {[%emt 00:05:47]} 29. Bd5 {[%emt 00:00:05]} Re5 {[%emt 00:03:28]} 30. Rf7+
{[%clk 00:55:36]} {[%emt 00:01:04]} Kh8 {[%emt 00:01:18]} 31. Bxa8 {[%emt
00:01:30]} 1-0

[Event "Swedish U16 Team Championship 2019 - Final"]
[Site "Molnlycke Kulturhus, Biblioteksgatan 2, Molnlycke, Sweden"]
[Date "2019.08.17"]
[Round "3.1"]
[White "Trost, Edvin"]
[Black "Ytterberg, Felix"]
[Result "0-1"]
[TimeControl "90 minutes + 30 seconds per move from move one."]
[WhiteElo "1951"]
[BlackElo "2033"]

1. e4 {[%clk 01:30:57]} {[%emt 00:00:02]} e5 {[%clk 01:30:51]} {[%emt
00:00:07]} 2. Nf3 {[%clk 01:31:25]} {[%emt 00:00:05]} Nc6 {[%clk 01:31:09]}
{[%emt 00:00:12]} 3. Bb5 {[%clk 01:31:44]} {[%emt 00:00:10]} a6 {[%clk
01:31:18]} {[%emt 00:00:20]} 4. Ba4 {[%clk 01:32:09]} {[%emt 00:00:06]} Nf6
{[%clk 01:31:25]} {[%emt 00:00:17]} 5. O-O {[%clk 01:32:33]} {[%emt 00:00:11]}
Be7 {[%clk 01:31:33]} {[%emt 00:00:21]} 6. Re1 {[%clk 01:32:57]} {[%emt
00:00:07]} b5 {[%clk 01:31:55]} {[%emt 00:00:08]} 7. Bb3 {[%clk 01:33:22]}
{[%emt 00:00:05]} O-O {[%clk 01:32:15]} {[%emt 00:00:09]} 8. c3 {[%clk
01:33:50]} {[%emt 00:00:03]} d6 {[%clk 01:32:18]} {[%emt 00:00:24]} 9. h3
{[%clk 01:34:15]} {[%emt 00:00:08]} Nb8 {[%clk 01:32:03]} {[%emt 00:00:44]} 10.
d4 {[%clk 01:34:37]} {[%emt 00:00:08]} Nbd7 {[%clk 01:32:22]} {[%emt 00:00:09]}
11. c4 {[%clk 01:35:01]} {[%emt 00:00:07]} c6 {[%clk 01:32:44]} {[%emt
00:00:08]} 12. a3 {[%clk 01:35:17]} {[%emt 00:00:15]} Bb7 {[%clk 01:32:33]}
{[%emt 00:00:41]} 13. Nc3 {[%clk 01:34:21]} {[%emt 00:01:26]} Re8 {[%clk
01:30:52]} {[%emt 00:02:10]} 14. Ba2 {[%clk 01:24:00]} {[%emt 00:10:52]} h6
{[%clk 00:49:36]} {[%emt 00:41:46]} 15. b4 {[%clk 01:20:49]} {[%emt 00:03:42]}
Bf8 {[%clk 00:46:46]} {[%emt 00:03:17]} 16. dxe5 {[%clk 01:18:31]} {[%emt
00:02:52]} Nxe5 {[%clk 00:35:50]} {[%emt 00:11:25]} 17. Nxe5 {[%clk 01:18:33]}
{[%emt 00:00:28]} dxe5 {[%clk 00:35:57]} {[%emt 00:00:22]} 18. c5 {[%clk
01:14:32]} {[%emt 00:04:31]} a5 {[%clk 00:35:16]} {[%emt 00:01:10]} 19. Qb3
{[%clk 01:13:28]} {[%emt 00:01:36]} Qc7 {[%clk 00:35:03]} {[%emt 00:00:42]} 20.
Be3 {[%clk 01:12:31]} {[%emt 00:01:27]} a4 {[%clk 00:34:44]} {[%emt 00:00:48]}
21. Qc2 {[%clk 01:11:22]} {[%emt 00:01:40]} Rad8 {[%clk 00:34:28]} {[%emt
00:00:44]} 22. Rad1 {[%clk 01:10:49]} {[%emt 00:01:05]} Bc8 {[%clk 00:33:56]}
{[%emt 00:01:01]} 23. Rxd8 {[%clk 01:10:11]} {[%emt 00:01:09]} Rxd8 {[%clk
00:34:11]} {[%emt 00:00:14]} 24. Rd1 {[%clk 01:10:29]} {[%emt 00:00:13]} Rd7
{[%clk 00:32:51]} {[%emt 00:01:50]} 25. Rxd7 {[%clk 01:09:51]} {[%emt
00:01:09]} Qxd7 {[%clk 00:32:55]} {[%emt 00:00:25]} 26. Qd2 {[%clk 01:09:54]}
{[%emt 00:00:22]} Qxd2 {[%clk 00:32:35]} {[%emt 00:00:56]} 27. Bxd2 {[%clk
01:10:23]} g6 {[%clk 00:31:52]} {[%emt 00:01:12]} 28. Kf1 {[%clk 01:08:42]}
{[%emt 00:01:54]} Kg7 {[%clk 00:31:43]} {[%emt 00:00:54]} 29. Ke2 {[%clk
01:09:07]} {[%emt 00:00:08]} Ne8 {[%clk 00:31:59]} {[%emt 00:00:12]} 30. Kd3
{[%clk 01:09:11]} {[%emt 00:00:27]} Nc7 {[%clk 00:32:18]} {[%emt 00:00:10]} 31.
Be3 {[%clk 01:09:16]} {[%emt 00:00:27]} Be6 {[%clk 00:32:18]} {[%emt 00:00:30]}
32. Bxe6 {[%clk 01:09:13]} {[%emt 00:00:33]} Nxe6 {[%clk 00:32:35]} {[%emt
00:00:11]} 33. g3 {[%clk 01:08:10]} {[%emt 00:01:35]} Be7 {[%clk 00:32:09]}
{[%emt 00:00:56]} 34. Ne2 {[%clk 01:06:04]} {[%emt 00:02:35]} f6 {[%clk
00:28:06]} {[%emt 00:04:34]} 35. Bd2 {[%clk 01:03:54]} {[%emt 00:02:37]} Nxc5+
{[%clk 00:27:17]} {[%emt 00:01:23]} 36. bxc5 {[%clk 01:04:09]} {[%emt
00:00:15]} Bxc5 {[%clk 00:27:35]} {[%emt 00:00:12]} 37. Bb4 {[%clk 00:59:36]}
{[%emt 00:05:03]} Bxf2 {[%clk 00:27:45]} {[%emt 00:00:19]} 38. g4 {[%clk
01:00:05]} Kf7 {[%clk 00:24:57]} {[%emt 00:03:17]} 39. Kc3 {[%clk 01:00:01]}
{[%emt 00:00:35]} c5 {[%clk 00:25:11]} {[%emt 00:00:18]} 40. Ba5 {[%clk
01:00:28]} {[%emt 00:00:03]} Be1+ {[%clk 00:25:30]} {[%emt 00:00:11]} 0-1

[Event "Swedish U16 Team Championship 2019 - Final"]
[Site "Molnlycke Kulturhus, Biblioteksgatan 2, Molnlycke, Sweden"]
[Date "2019.08.17"]
[Round "3.2"]
[White "Ivarsson, Sebastian"]
[Black "Sorensen, Hampus"]
[Result "0-1"]
[TimeControl "90 minutes + 30 seconds per move from move one."]
[BlackTitle "FM"]
[WhiteElo "2001"]
[BlackElo "2356"]

1. d4 {[%clk 01:30:48]} {[%emt 00:00:12]} d5 {[%clk 01:30:34]} {[%emt
00:00:26]} 2. c4 {[%clk 01:31:00]} {[%emt 00:00:18]} e6 {[%clk 01:30:52]}
{[%emt 00:00:12]} 3. Nf3 {[%clk 01:31:03]} {[%emt 00:00:27]} Nf6 {[%clk
01:29:47]} {[%emt 00:01:35]} 4. Nc3 {[%clk 01:30:12]} {[%emt 00:01:21]} Bb4
{[%clk 01:29:57]} {[%emt 00:00:21]} 5. Bg5 {[%clk 01:17:00]} {[%emt 00:13:41]}
h6 {[%clk 01:29:52]} {[%emt 00:00:34]} 6. Bh4 {[%clk 01:13:32]} {[%emt
00:03:59]} g5 {[%clk 01:26:04]} {[%emt 00:04:19]} 7. Bg3 {[%clk 01:13:42]}
{[%emt 00:00:20]} dxc4 {[%clk 01:26:16]} {[%emt 00:00:18]} 8. e3 {[%clk
00:56:33]} {[%emt 00:17:38]} b5 {[%clk 01:24:42]} {[%emt 00:02:04]} 9. a4
{[%clk 00:52:53]} {[%emt 00:04:11]} c6 {[%clk 01:21:53]} {[%emt 00:03:19]} 10.
Nd2 {[%clk 00:51:47]} {[%emt 00:01:36]} Bb7 {[%clk 01:15:43]} {[%emt 00:06:40]}
11. Be5 {[%clk 00:37:39]} {[%emt 00:14:38]} Nbd7 {[%clk 01:11:44]} {[%emt
00:04:29]} 12. f4 {[%clk 00:35:35]} {[%emt 00:02:34]} gxf4 {[%clk 01:00:02]}
{[%emt 00:12:11]} 13. Bxf4 {[%clk 00:35:28]} {[%emt 00:00:37]} Nd5 {[%clk
00:56:22]} {[%emt 00:04:10]} 14. Nxd5 {[%clk 00:35:26]} {[%emt 00:00:32]} cxd5
{[%clk 00:54:19]} {[%emt 00:02:33]} 15. axb5 {[%clk 00:34:25]} {[%emt
00:01:31]} e5 {[%clk 00:51:18]} {[%emt 00:03:31]} 16. dxe5 {[%clk 00:31:44]}
{[%emt 00:03:11]} Nc5 {[%clk 00:50:58]} {[%emt 00:00:49]} 17. Qh5 {[%clk
00:25:51]} {[%emt 00:06:22]} Ne4 {[%clk 00:49:17]} {[%emt 00:02:13]} 18. O-O-O
{[%clk 00:25:02]} {[%emt 00:01:18]} Bxd2+ {[%clk 00:47:58]} {[%emt 00:01:49]}
19. Rxd2 {[%clk 00:25:22]} {[%emt 00:00:11]} Qa5 {[%clk 00:48:14]} {[%emt
00:00:14]} 20. Rd4 {[%clk 00:23:18]} {[%emt 00:02:33]} c3 {[%clk 00:47:40]}
{[%emt 00:01:04]} 21. e6 {[%clk 00:15:02]} {[%emt 00:08:47]} Qa1+ {[%clk
00:47:53]} {[%emt 00:00:18]} 22. Kc2 {[%clk 00:15:28]} {[%emt 00:00:03]} Qxb2+
{[%clk 00:48:12]} {[%emt 00:00:11]} 23. Kd1 {[%clk 00:15:44]} {[%emt 00:00:13]}
c2+ {[%clk 00:48:16]} {[%emt 00:00:27]} 0-1

[Event "Swedish U16 Team Championship 2019 - Final"]
[Site "Molnlycke Kulturhus, Biblioteksgatan 2, Molnlycke, Sweden"]
[Date "2019.08.17"]
[Round "3.3"]
[White "Svetic, Matija"]
[Black "Dingertz, Erik"]
[Result "1/2-1/2"]
[TimeControl "90 minutes + 30 seconds per move from move one."]
[WhiteElo "1775"]
[BlackElo "1888"]

1. e4 {[%clk 01:30:57]} {[%emt 00:00:03]} e5 {[%clk 01:30:27]} {[%emt
00:00:33]} 2. Bc4 {[%clk 01:30:50]} {[%emt 00:00:37]} Nc6 {[%clk 01:30:32]}
{[%emt 00:00:24]} 3. Nc3 {[%clk 01:31:04]} {[%emt 00:00:17]} Nf6 {[%clk
08:19:30]} {[%emt 00:01:32]} 4. d3 {[%clk 01:31:21]} {[%emt 00:00:12]} Bc5
{[%clk 01:27:13]} {[%emt 00:02:47]} 5. f4 {[%clk 01:31:13]} {[%emt 00:00:39]}
d6 {[%clk 01:26:31]} {[%emt 00:01:12]} 6. Nf3 {[%clk 01:31:06]} {[%emt
00:00:37]} a6 {[%clk 01:24:19]} {[%emt 00:02:43]} 7. a3 {[%clk 01:27:05]}
{[%emt 00:04:31]} Bg4 {[%clk 01:09:47]} {[%emt 00:15:01]} 8. Ne2 {[%clk
01:16:41]} {[%emt 00:10:55]} Bxf3 {[%clk 01:04:33]} {[%emt 00:05:44]} 9. gxf3
{[%clk 01:16:50]} {[%emt 00:00:21]} Nh5 {[%clk 01:04:36]} {[%emt 00:00:25]} 10.
h4 {[%clk 01:14:52]} {[%emt 00:02:29]} Qf6 {[%clk 01:01:08]} {[%emt 00:03:56]}
11. f5 {[%clk 01:13:57]} {[%emt 00:01:27]} h6 {[%clk 00:54:11]} {[%emt
00:07:27]} 12. Nc3 {[%clk 00:48:17]} {[%emt 00:26:11]} Ne7 {[%clk 00:53:44]}
{[%emt 00:00:55]} 13. Qd2 {[%clk 00:36:57]} {[%emt 00:11:51]} Nf4 {[%clk
00:50:29]} {[%emt 00:03:44]} 14. Qh2 {[%clk 00:32:15]} {[%emt 00:05:12]} Nh5
{[%clk 00:38:21]} {[%emt 00:12:37]} 15. Qg2 {[%clk 00:29:25]} {[%emt 00:03:21]}
O-O-O {[%clk 00:25:59]} {[%emt 00:12:53]} 16. Qg4 {[%clk 00:21:45]} {[%emt
00:08:11]} Nf4 {[%clk 00:26:21]} {[%emt 00:00:07]} 17. Bxf4 {[%clk 00:19:26]}
{[%emt 00:02:49]} exf4 {[%clk 00:26:44]} {[%emt 00:00:06]} 18. Qxf4 {[%clk
00:18:50]} {[%emt 00:01:07]} Bd4 {[%clk 00:26:23]} {[%emt 00:00:49]} 19. Qd2
{[%clk 00:11:23]} {[%emt 00:07:58]} Rhe8 {[%clk 00:26:42]} {[%emt 00:00:11]} 20.
Ne2 {[%clk 00:06:29]} {[%emt 00:05:23]} 1/2-1/2

[Event "Swedish U16 Team Championship 2019 - Final"]
[Site "Molnlycke Kulturhus, Biblioteksgatan 2, Molnlycke, Sweden"]
[Date "2019.08.17"]
[Round "3.4"]
[White "Ljung, Harald"]
[Black "Wikman, Viktor 2006"]
[Result "1/2-1/2"]
[TimeControl "90 minutes + 30 seconds per move from move one."]
[WhiteElo "1811"]
[BlackElo "1662"]

1. d4 {[%clk 01:30:30]} {[%emt 00:01:05]} Nf6 {[%clk 01:30:30]} {[%emt
00:00:06]} 2. c4 {[%clk 01:30:48]} {[%emt 00:00:32]} e6 {[%clk 01:30:52]}
{[%emt 00:00:09]} 3. Nc3 {[%clk 01:31:00]} {[%emt 00:00:16]} Bb4 {[%clk
01:31:07]} {[%emt 00:00:16]} 4. Qc2 {[%clk 01:30:36]} {[%emt 00:00:54]} Nc6
{[%clk 01:30:52]} {[%emt 00:00:46]} 5. Nf3 {[%clk 01:30:14]} {[%emt 00:00:52]}
d6 {[%clk 01:30:33]} {[%emt 00:00:48]} 6. a3 {[%clk 01:28:49]} {[%emt
00:01:56]} Bxc3+ {[%clk 01:29:01]} {[%emt 00:02:02]} 7. Qxc3 {[%clk 01:28:04]}
{[%emt 00:01:15]} O-O {[%clk 01:28:44]} {[%emt 00:00:46]} 8. e3 {[%clk
01:20:07]} {[%emt 00:08:27]} Qe7 {[%clk 01:25:52]} {[%emt 00:03:22]} 9. Be2
{[%clk 01:15:19]} {[%emt 00:05:16]} e5 {[%clk 01:25:15]} {[%emt 00:01:09]} 10.
d5 {[%clk 01:10:27]} {[%emt 00:05:22]} Nb8 {[%clk 01:25:27]} {[%emt 00:00:17]}
11. b3 {[%clk 01:08:05]} {[%emt 00:02:53]} Nbd7 {[%clk 01:23:51]} {[%emt
00:02:06]} 12. Bb2 {[%clk 01:06:22]} {[%emt 00:02:13]} Nc5 {[%clk 01:23:04]}
{[%emt 00:01:17]} 13. O-O {[%clk 00:53:31]} {[%emt 00:13:20]} Nfe4 {[%clk
01:18:58]} {[%emt 00:04:37]} 14. Qc2 {[%clk 00:52:18]} {[%emt 00:01:40]} Bf5
{[%clk 01:07:32]} {[%emt 00:11:58]} 15. Qd1 {[%clk 00:51:55]} {[%emt 00:00:50]}
Bd7 {[%clk 01:00:34]} {[%emt 00:07:31]} 16. Rc1 {[%clk 00:36:51]} {[%emt
00:15:32]} a5 {[%clk 00:55:01]} {[%emt 00:06:04]} 17. Bd3 {[%clk 00:29:38]}
{[%emt 00:07:43]} f5 {[%clk 00:52:44]} {[%emt 00:02:47]} 18. b4 {[%clk
00:25:09]} {[%emt 00:04:59]} Nxd3 {[%clk 00:47:18]} {[%emt 00:05:56]} 19. Qxd3
{[%clk 00:25:23]} {[%emt 00:00:15]} f4 {[%clk 00:45:35]} {[%emt 00:02:14]} 20.
exf4 {[%clk 00:19:16]} {[%emt 00:06:36]} Rxf4 {[%clk 00:43:28]} {[%emt
00:02:38]} 21. g3 {[%clk 00:16:23]} {[%emt 00:03:23]} Rxf3 {[%clk 00:33:26]}
{[%emt 00:10:31]} 22. Qxf3 {[%clk 00:16:47]} {[%emt 00:00:06]} Nd2 {[%clk
00:33:49]} {[%emt 00:00:07]} 23. Qe3 {[%clk 00:16:56]} {[%emt 00:00:20]} Nxf1
{[%clk 00:34:12]} {[%emt 00:00:08]} 24. Rxf1 {[%clk 00:17:17]} {[%emt
00:00:09]} Bh3 {[%clk 00:30:11]} {[%emt 00:04:31]} 25. Re1 {[%clk 00:16:01]}
{[%emt 00:01:43]} axb4 {[%clk 00:29:33]} {[%emt 00:01:11]} 26. axb4 {[%clk
00:16:23]} {[%emt 00:00:09]} Re8 {[%clk 00:21:45]} {[%emt 00:08:17]} 27. Qe4
{[%clk 00:12:13]} {[%emt 00:04:39]} Rf8 {[%clk 00:14:19]} {[%emt 00:07:56]} 28.
Bc1 {[%clk 00:04:59]} {[%emt 00:07:44]} Qf7 {[%clk 00:06:53]} {[%emt 00:07:56]}
29. Be3 {[%clk 00:03:51]} {[%emt 00:01:38]} Bf5 {[%clk 00:06:47]} {[%emt
00:00:36]} 30. Qf3 {[%clk 00:01:36]} {[%emt 00:02:45]} Qg6 {[%clk 00:06:14]}
{[%emt 00:01:04]} 31. Qg2 {[%clk 00:01:19]} {[%emt 00:00:46]} Bd3 {[%clk
00:05:08]} {[%emt 00:01:36]} 32. Rc1 {[%clk 00:00:55]} {[%emt 00:00:54]} Qg4
{[%clk 00:03:45]} {[%emt 00:01:54]} 33. h3 {[%clk 00:00:53]} {[%emt 00:00:32]}
Qe2 {[%clk 00:02:49]} {[%emt 00:01:26]} 34. c5 {[%clk 00:00:48]} {[%emt
00:00:35]} Qb2 {[%clk 00:01:51]} {[%emt 00:01:28]} 35. cxd6 {[%clk 00:00:41]}
{[%emt 00:00:38]} cxd6 {[%clk 00:02:14]} {[%emt 00:00:07]} 36. f4 {[%clk
00:00:34]} {[%emt 00:00:37]} Qxb4 {[%clk 00:01:43]} {[%emt 00:01:00]} 37. fxe5
{[%clk 00:00:49]} {[%emt 00:00:15]} dxe5 {[%clk 00:01:37]} {[%emt 00:00:37]} 38.
Bc5 {[%clk 00:00:53]} {[%emt 00:00:26]} Qa4 {[%clk 00:00:33]} {[%emt 00:01:34]}
39. Bxf8 {[%clk 00:00:41]} {[%emt 00:00:42]} Qd4+ {[%clk 00:00:45]} {[%emt
00:00:18]} 40. Qf2 {[%clk 00:00:37]} {[%emt 00:00:33]} Qxf2+ {[%clk 00:00:45]}
{[%emt 00:00:31]} 41. Kxf2 {[%clk 00:01:04]} {[%emt 00:00:04]} Kxf8 {[%clk
00:01:05]} {[%emt 00:00:11]} 42. Rc8+ {[%clk 00:00:58]} {[%emt 00:00:35]} Ke7
{[%clk 00:01:03]} {[%emt 00:00:31]} 43. Rc7+ {[%clk 00:01:17]} {[%emt
00:00:11]} Kd6 {[%clk 00:01:05]} {[%emt 00:00:29]} 44. Rxb7 {[%clk 00:01:39]}
{[%emt 00:00:07]} g5 {[%clk 00:01:32]} {[%emt 00:00:04]} 45. Ke3 {[%clk
00:01:43]} {[%emt 00:00:26]} Bg6 {[%clk 00:00:56]} {[%emt 00:01:06]} 46. Rb5
{[%clk 00:01:27]} {[%emt 00:00:45]} Bf5 {[%clk 00:00:49]} {[%emt 00:00:38]} 47.
g4 {[%clk 00:01:12]} {[%emt 00:00:45]} Bg6 {[%clk 00:00:42]} {[%emt 00:00:37]}
48. Ra5 {[%clk 00:00:46]} {[%emt 00:00:56]} Bc2 {[%clk 00:00:33]} {[%emt
00:00:39]} 49. Rb5 {[%clk 00:00:40]} {[%emt 00:00:35]} Bg6 {[%clk 00:00:56]}
{[%emt 00:00:07]} 50. Ke4 {[%emt 00:00:34]} 1/2-1/2